Cogmind - Beta 13 @@@ ROGUE MODE // 2024.04.01 @ 04:37:16 Player: autoYotsuba Result: Destroyed by G-34 Mercenary with Small Laser Performance ------------- Evolutions (1) 500 Regions Visited (2) 400 Robots Destroyed (14) 70 Value Destroyed (438) 438 Prototype IDs (2) 40 Alien Tech Used (0) 0 Bonus (0) 0 TOTAL SCORE: 1448 Bonus ------- None Cogmind --------- Core Integrity 0/400 Matter 297/300 Energy 100/100 System Corruption 1% Temperature Cool (6) Movement Treading (160) Location -9/Materials Parts ------- > --- POWER (1) -------- (None) > --- PROPULSION (3) --- Light Treads Light Treads > --- UTILITY (2) ------ Heat Sink > --- WEAPON (3) ------- (None) > --- INVENTORY (5) ---- Ion Engine Hover Unit Structural Scanner Peak State ------------ > --- POWER ------------ Light Ion Engine > --- PROPULSION ------- Aluminum Leg Wheel > --- UTILITY ---------- High-capacity Storage Unit > --- WEAPON ----------- Shotgun Mini Grenade Launcher > --- INVENTORY -------- Structural Scanner EM Pulse Gun Beam Rifle [Rating: 8] Favorites ----------- Power Light Ion Engine Engine Light Ion Engine Propulsion Aluminum Leg Treads Light Treads Leg Aluminum Leg Wheel Wheel Hover Unit Hover Unit Utility Structural Scanner Device Structural Scanner Storage High-capacity Storage Unit Protection Light Armor Plating Weapon Grenade Launcher Energy Gun EM Pulse Gun Ballistic Gun Shotgun Launcher Grenade Launcher Build | -11 -10 -9 ------- Run | Yrd Mat Mat Slots Evolved 2 | . . 2 Power . | . . . Propulsion 1 | . . 1 Utility . | . . . Weapon 1 | . . 1 Parts Attached 30 | 6 17 7 Power 6 | 2 4 . Engine 6 | 2 4 . Core . | . . . Reactor . | . . . Propulsion 7 | 2 2 3 Treads 2 | . . 2 Leg 3 | 1 1 1 Wheel 1 | 1 . . Hover 1 | . 1 . Flight . | . . . Utility 5 | . 3 2 Device 3 | . 2 1 Storage 1 | . 1 . Processor . | . . . Hackware . | . . . Protection 1 | . . 1 Artifact . | . . . Weapon 12 | 2 8 2 Energy Gun 3 | 2 1 . Energy Cannon . | . . . Ballistic Gun 5 | . 3 2 Ballistic Cannon . | . . . Launcher 4 | . 4 . Special Weapon . | . . . Impact Weapon . | . . . Slashing Weapon . | . . . Piercing Weapon . | . . . Special Melee Weapon . | . . . Unidentified Prototypes . | . . . Corrupted Parts 1 | . . 1 System Corruption 1 | . . 1 Parts Lost 9 | . 1 8 Power 2 | . 1 1 Propulsion 2 | . . 2 Utility 1 | . . 1 Weapon 4 | . . 4 Highest Loss Streak 3 | . 1 3 To Critical Strikes . | . . . Average Slot Usage (%) 66 | . 74 43 Engine 10 | . 13 3 Treads 1 | . . 8 Leg 12 | . 14 8 Wheel 5 | . 7 . Device 12 | . 11 12 Energy Gun 5 | . 7 1 Ballistic Gun 7 | . 7 5 Launcher 9 | . 11 1 Naked Turns . | . . . Heaviest Build 12 | 9 10 12 Greatest Support 40 | 10 10 40 Greatest Overweight (x) 1 | . 1 1 Average Overweight (x) . | . . . Largest Inventory Capacity 20 | 5 20 5 Average Capacity 5 | 5 5 5 Most Carried 5 | 3 5 3 Average Carried 2 | 1 3 2 Final Capacity 5 | 5 5 5 Final Carried 3 | 2 3 3 Class Distribution -------------------- 90% | Mutant 9% | Scavenger-Mutant Dominant Class ---------------- Mutant | -10/Materials Mutant | -9/Materials Resources | -11 -10 -9 ----------- Run | Yrd Mat Mat Matter Collected 683 | 250 346 87 Remotely . | . . . Salvage Created 371 | 41 170 160 Parts 28 | 3 12 13 Haulers Intercepted . | . . . Recyclers Shooed 1 | . . 1 Parts Field Recycled . | . . . Retrieved Matter . | . . . Parts Self-Destructed . | . . . Prevented . | . . . Kills | -11 -10 -9 ------- Run | Yrd Mat Mat Combat Hostiles Destroyed 10 | 1 6 3 Melee 1 | . . 1 Guns 3 | 1 . 2 AOE 6 | . 6 . Classes Destroyed 5 | 1 3 1 Worker 1 | . 1 . Builder 1 | . 1 . Watcher 2 | . 1 1 Grunt 9 | 1 6 2 Sentry 1 | . . 1 Best Kill Streak 6 | 1 6 3 Combat Bots Only 4 | 1 4 3 Max Kills in Single Turn 2 | 1 2 1 Gunslinging . | . . . Exploded 1 | . 1 . Melee 1 | . . 1 Uniques/NPCs Destroyed . | . . . Combat | -11 -10 -9 -------- Run | Yrd Mat Mat Hostile Shots Fired 153 | 2 39 112 Missed 50 | . 10 40 Damage Taken 1362 | 23 397 942 Core 551 | 12 131 408 Absorbed by Shields . | . . . Core Remaining (%) 68 | 95 42 . Volleys Fired 33 | 1 17 15 Largest 2 | 2 2 2 Hottest 80 | 80 53 70 Shots Fired 51 | 2 31 18 Gun 35 | 2 17 16 Cannon . | . . . Launcher 16 | . 14 2 Special . | . . . Kinetic 27 | . 17 10 Thermal . | . . . Explosive 16 | . 14 2 Electromagnetic 8 | 2 . 6 Robot Hit Streak 6 | 1 6 2 Robot Miss Streak 3 | . 1 3 Penetration Max . | . . . Secondary Targets . | . . . Shots Hit Robots 12 | 1 5 6 Core Hits 27 | 1 17 9 Critical Kills . | . . . Critical Parts Destroyed . | . . . Critical Strikes . | . . . Melee Attacks . | . . . Impact . | . . . Slashing . | . . . Piercing . | . . . Sneak Attacks . | . . . Combat Hostiles . | . . . Follow-up Attacks . | . . . Damage Inflicted 826 | 15 631 180 Guns 200 | 15 84 101 Cannons . | . . . Explosions 592 | . 547 45 Melee . | . . . Ramming 34 | . . 34 Kinetic 173 | . 84 89 Thermal . | . . . Explosive 592 | . 547 45 Electromagnetic 27 | 15 . 12 Impact . | . . . Slashing . | . . . Piercing . | . . . Highest Corruption 1 | . . 1 Average Corruption 1 | . . 1 Corruption Purged . | . . . Corruption Blocked . | . . . Effects 1 | . . 1 Misfires 1 | . . 1 Overload Shots . | . . . Overflow Damage 24 | . 18 6 Projectiles . | . . . Explosions 24 | . 18 6 Melee . | . . . Knockbacks . | . . . Impact . | . . . Kinetic . | . . . Secondary . | . . . Self-Inflicted Damage 68 | . 20 48 Shots 3 | . 2 1 Rammed 9 | . . 9 Targets Rammed 9 | . . 9 Kicked . | . . . Crushed . | . . . Highest Temperature 18 | 18 18 9 Average Temperature 7 | 12 6 8 Received Heat Transfer 612 | 12 210 390 Siege Activations . | . . . Robots Corrupted . | . . . Combat Hostiles . | . . . Parts Fried . | . . . Impact Corruptions . | . . . Robots Melted . | . . . Combat Hostiles . | . . . Parts Melted . | . . . Heat Transferred . | . . . Parts Sabotaged . | . . . Parts Stolen . | . . . Parts Stripped . | . . . Power Chain Reactions . | . . . Alert | -11 -10 -9 ------- Run | Yrd Mat Mat Peak Influence 257 | 20 257 77 Initial 24 | . 13 24 Average 94 | 5 123 49 Maximum Alert Level 1 | . 1 . Low Security (%) 80 | 100 71 100 Level 1 19 | . 28 . Level 2 . | . . . Level 3 . | . . . Level 4 . | . . . Level 5 . | . . . High Security . | . . . Max Security . | . . . Squads Dispatched 3 | . 1 2 Investigation 1 | . 1 . Extermination . | . . . Reinforcement 2 | . . 2 Assault . | . . . Garrison . | . . . Intercept . | . . . Searches Triggered . | . . . Construction Impeded . | . . . Haulers Reinforced . | . . . Active Scanning Responses . | . . . Cargo Convoy Interrupts . | . . . Stealth | -11 -10 -9 --------- Run | Yrd Mat Mat Distress Signals 4 | . 2 2 Communications Jammed . | . . . Distress Signals . | . . . Times Spotted 21 | 1 7 13 Peak Tracking Total 5 | 1 4 5 Tactical Retreats . | . . . Traps | -11 -10 -9 ------- Run | Yrd Mat Mat Traps Triggered 1 | . 1 . Indirectly . | . . . Trap Hack Attempts . | . . . Triggered . | . . . Disarmed . | . . . Reprogrammed . | . . . Reused . | . . . Traps Extracted . | . . . Installed . | . . . Triggered . | . . . Machines | -11 -10 -9 ---------- Run | Yrd Mat Mat Machines Disabled 1 | . 1 . Max in Single Turn 1 | . 1 . Machines Repaired . | . . . Machines Dismantled . | . . . Machines Sabotaged . | . . . Overloaded Fab Kills . | . . . Hacking | -11 -10 -9 --------- Run | Yrd Mat Mat Machines Accessed 5 | . 5 . Terminals 4 | . 4 . Fabricators . | . . . Repair Stations . | . . . Recycling Units 1 | . 1 . Scanalyzers . | . . . Garrison Access . | . . . Total Hacks 12 | . 12 . Successful 7 | . 7 . Failed 5 | . 5 . Catastrophic . | . . . Database Lockouts . | . . . Manual . | . . . Terminals 9 | . 9 . Fabricators . | . . . Repair Stations . | . . . Recycling Units 3 | . 3 . Scanalyzers . | . . . Garrison Access . | . . . Terminal Hacks 4 | . 4 . Record 1 | . 1 . Prototype ID Bank 1 | . 1 . Emergency Access Points 1 | . 1 . Zone Layout 1 | . 1 . Fabricator Hacks . | . . . Repair Station Hacks . | . . . Recycling Unit Hacks 3 | . 3 . Recycle Component 1 | . 1 . Process 1 | . 1 . Report Inventory 1 | . 1 . Scanalyzer . | . . . Garrison Access Hacks . | . . . Unauthorized Hacks . | . . . Terminals . | . . . Fabricators . | . . . Repair Stations . | . . . Recycling Units . | . . . Scanalyzers . | . . . Garrison Access . | . . . Data Cores Recovered . | . . . Used . | . . . Hacking Detections 4 | . 4 . Full Trace Events 1 | . 1 . Feedback Events . | . . . Feedback Blocked . | . . . Robot Schematics Acquired . | . . . Robots Built . | . . . Authchips . | . . . Time . | . . . Total Robot Build Rating . | . . . Part Schematics Acquired . | . . . Parts Built . | . . . Authchips . | . . . Time . | . . . Total Part Build Rating . | . . . Parts Repaired . | . . . Time . | . . . Parts Recycled 1 | . 1 . Recycled Matter 250 | . 250 . Retrieved Matter . | . . . Retrieved Components . | . . . Parts Scanalyzed . | . . . Part Schematics Acquired . | . . . Parts Damaged . | . . . Bothacking | -11 -10 -9 ------------ Run | Yrd Mat Mat Used RIF Installer . | . . . Robots Hacked . | . . . Non-combat . | . . . Combat . | . . . Robot Hacks Applied . | . . . Relay Couplers Released . | . . . Fabnet Peak Effective % . | . . . Robots Rewired . | . . . Allies Hacked . | . . . Hacks Repelled . | . . . Allies | -11 -10 -9 -------- Run | Yrd Mat Mat Total Allies . | . . . Largest Group . | . . . Highest-Rated Group . | . . . Highest-Rated Ally . | . . . Total Orders . | . . . Ally Attacks . | . . . Total Damage . | . . . Kills . | . . . Allies Corrupted . | . . . Allies Melted . | . . . Intel | -11 -10 -9 ------- Run | Yrd Mat Mat Robot Analysis Total . | . . . Derelict Logs Recovered . | . . . Drone Launches . | . . . Drone Recoveries . | . . . Exploration | -11 -10 -9 ------------- Run | Yrd Mat Mat Turns Passed 1021 | 111 689 221 Spaces Moved 834 | 124 572 138 Core 70 | 34 . 36 Treads 40 | . . 40 Legs 404 | 14 328 62 Wheels 316 | 76 240 . Hover 4 | . 4 . Flight . | . . . Fastest Speed 50 | 50 80 50 Average Speed 102 | 76 103 120 Slowest Speed 190 | 120 130 190 Overloaded Moves . | . . . Propulsion Burnouts . | . . . Robots Hopped . | . . . Cave-ins Triggered . | . . . Exploration Rate (%) 26 | 8 64 7 Regions Visited 2 Branch Regions . Pre-discovered Areas . | . . . Known Exits Taken . | . . . Unknown Exits Taken 2 | 1 1 . Scrap Searched . | . . . Spaces Dug . | . . . Terrain Destroyed 97 | . 86 11 Melee . | . . . Projectile . | . . . AOE 97 | . 86 11 Terrain Rammed . | . . . Walls Destroyed . | . . . Machines Disabled . | . . . Actions | -11 -10 -9 --------- Run | Yrd Mat Mat Total 963 | 137 650 176 Wait 4 | . 4 . Move 832 | 123 571 138 Hop . | . . . Pick Up 30 | 7 17 6 Fast Attach . | . . . Attach 28 | 5 16 7 Detach 13 | . 12 1 Swap 2 | 1 1 . Drop 12 | . 12 . Fire 33 | 1 17 15 Melee . | . . . Ram 9 | . . 9 Kick . | . . . Crush . | . . . Escape Stasis . | . . . Rewire . | . . . Trap . | . . . Miscellaneous . | . . . Route ------- -11/Scrapyard -10/Materials (discovered 2 exits: [*Mat] / [*Min]) -9/Materials History --------- Turn | Location | Event 2 | -11/Scrapyard | Met Revision 17 76 | -11/Scrapyard | Discovered new exit (range 8) 112 | -11/Scrapyard | Entered Materials 292 | -10/Materials | Discovered new exit (range 10) 309 | -10/Materials | Core integrity fell below 50% 317 | -10/Materials | Build established: Mutant 669 | -10/Materials | Discovered new exit (range 5) 801 | -10/Materials | Entered another Materials area 801 | -9/Materials | Evolved 2 slots: Propulsion x1, Weapon x1 870 | -9/Materials | Lost 3 parts (3w) 900 | -9/Materials | Core integrity fell below 50% 914 | -9/Materials | Core integrity fell below 20% 1022 | -9/Materials | Destroyed by G-34 Mercenary with Small Laser Last Messages --------------- Acquired 16 matter. R-06 Scavenger collects Aluminum Leg. Acquired Heat Sink. Acquired 10 matter. R-06 Scavenger collects Heat Sink. System corrupted: FCS attempts to trigger Hvy. Assault Rifle. System corrupted: Hvy. Assault Rifle misfires. Acquired Lgt. Treads. Acquired 6 matter. Acquired 10 matter. Acquired Lgt. Armor Plating. Acquired Lgt. Treads. Acquired 29 matter. Acquired 1 matter. Acquired Ion Engine. Hvy. Assault Rifle destroyed. Aluminum Leg destroyed. Lgt. Armor Plating destroyed. M-13 Machinist repairs Tractor Beam. Map ----- +----------------------------------------------------+ | | | | | | | | | | | ??????????????????????????????????????? | | ??????????????????????????????????????? | | ??????????????????????????????????????? | | ??????????????????????????????????????? | | ??????????????????????????????????????? | | ??????????????????????????????????????? | | ??????????????????????????????????????? | | ??????????????????????????????????????? | | ??????????????????????????????????????? | | ??????????????????????????????????????? | | ?????????????????????##########???????? | | ???????????????"# ???##########???????? | | ??????????????? # ??## ##???????? | | ???????????????"# ?## ######???? | | ???????????????"#"" ?## """######???? | | ???????????????"#"T ## T"# ##???? | | ????????? #"" ## """# ##???? | | ?????????####+### ## # ##???? | | ?????????## ###+######+### ##???? | | ?????????## ##???? | | ????????? t @ ##???? | | ?????????## ##???? | | ?????????## ####### #########???? | | ?????????#####?######## #########???? | | ?????????# ?????? ## #####???????? | | ?????????????????????## ############# | | ?????????????????????## ############# | | ???????????????????? ## ## ## | | ?????????? ## ## ## | | ??????????######+##### # """ ## | | ?????????? g # """"" ## | | ?????????? gTg + %%""""" ## | | ????????? # """"" ## | | ?????????###### #### m #! !""" ## | | ?????????###### ######/### * ## | | ????????????? # ???? ############# | | ????????????? + ?????? ?############# | | ????????????? # ?????? ?????????????? | | ?????????????????????####?????????????? | | ??????????????????????????????????????? | | ??????????????????????????????????????? | | ??????????????????????????????????????? | | ??????????????????????????????????????? | | ??????????????????????????????????????? | | ??????????????????????????????????????? | +----------------------------------------------------+ Best States ------------- Heat Dissipation 38 Energy Generation 10 Energy Capacity 250 Matter Stores 300 Matter Capacity 300 Sight Range 16 Terrain Scan Density 10 Armor Coverage 150 Evasion (%) 55 Recoil Reduction 2 Item Schematics ----------------- None Robot Schematics ------------------ None Fabricated ------------ Nothing Alien Tech Used ----------------- None Achievements -------------- None Challenges ------------ None Game ------ Seed AssembledLayeredSword Manual? 0 Play Time 00:25:09 Cumulative 1.2 hours Start 2024.04.01 @ 04:12:35 End 2024.04.01 @ 04:37:16 Sessions 1 Manual Loads 0 Difficulty Rogue Special Mode None Game No. 2 Rogue 2 Adventurer 0 Explorer 0 Win Type - Total 0 Types 0/0/0/0/0/0/0/0/0 Lore% 0 Gallery% 2 Achievement% 2 Wizard Run 0 Options --------- Layout 1 ASCII 0 Keyboard 0 Movement Arrows Keybinds 0 Fullscreen 1 Font 24/Tamsyn Map View 50x35 Zoom Use 0% Tactical HUD 0 Map Filters NONE Filters NONE Steam 1 RUN: 741d8c91-3ebb-4c0b-a141-97ea922affad